fUSD/lending_fUSD_20240212
["ID","MTS","AMOUNT","RATE_DAILY","PERIOD"]
[313798044,1707729044700,-617.28,0.00022613,2]
[313798045,1707729044709,-209.418737,0.00022613,2]
[313798046,1707729044718,-947.0,0.00022613,2]
[313798047,1707729044729,-500.0,0.00022613,2]
[313798048,1707729044738,-500.0,0.00022613,2]
[313798049,1707729044747,-500.0,0.00022613,2]
[313798050,1707729044757,-417.54278837,0.00022613,2]
[313798051,1707729044769,-500.0,0.00022613,2]
[313798052,1707729044779,-2820.72,0.00022613,2]
[313798053,1707729044788,-500.0,0.00022613,2]
[313798054,1707729044798,-523.04,0.00022613,2]
[313798055,1707729044807,-500.0,0.00022613,2]
[313798056,1707729044816,-500.0,0.00022613,2]
[313798057,1707729044825,-903.35,0.00022613,2]
[313798058,1707729044834,-500.0,0.00022613,2]
[313798059,1707729044845,-500.0,0.00022613,2]
[313798060,1707729044853,-740.51,0.00022613,2]
[313798061,1707729044863,-1143.13,0.00022613,2]
[313798062,1707729044872,-1446.23,0.00022613,2]
[313798063,1707729044881,-1427.92,0.00022613,2]
[313798064,1707729044891,-500.0,0.00022613,2]
[313798065,1707729044900,-500.0,0.00022613,2]
[313798066,1707729044909,-500.0,0.00022613,2]
[313798067,1707729044919,-622.51,0.00022613,2]
[313798068,1707729044928,-531.64,0.00022613,2]
[313798069,1707729044938,-500.0,0.00022613,2]
[313798070,1707729044948,-500.0,0.00022613,2]
[313798071,1707729044957,-500.0,0.00022613,2]
[313798072,1707729044966,-500.0,0.00022613,2]
[313798073,1707729044975,-1274.77,0.00022613,2]
[313798074,1707729044984,-500.0,0.00022613,2]
[313798075,1707729044993,-539.78,0.00022613,2]
[313798076,1707729045002,-500.0,0.00022613,2]
[313798077,1707729045011,-2760.41,0.00022613,2]
[313798078,1707729045020,-500.0,0.00022613,2]
[313798079,1707729045029,-500.0,0.00022613,2]
[313798080,1707729045038,-556.69,0.00022613,2]
[313798081,1707729045047,-500.0,0.00022613,2]
[313798082,1707729045056,-515.89,0.00022613,2]
[313798083,1707729045065,-500.0,0.00022613,2]
[313798084,1707729045074,-538.42,0.00022613,2]
[313798085,1707729045083,-3169.53,0.00022613,2]
[313798086,1707729045093,-2582.36,0.00022613,2]
[313798087,1707729045102,-808.54,0.00022613,2]
[313798088,1707729045111,-500.0,0.00022613,2]
[313798089,1707729045120,-1361.42,0.00022613,2]
[313798090,1707729045129,-1423.47,0.00022613,2]
[313798091,1707729045138,-1697.94,0.00022613,2]
[313798092,1707729045147,-546.02,0.00022613,2]
[313798093,1707729045156,-500.0,0.00022613,2]
[313798094,1707729045164,-758.67,0.00022613,2]
[313798095,1707729045174,-500.0,0.00022613,2]
[313798096,1707729045183,-500.0,0.00022613,2]
[313798097,1707729045192,-500.0,0.00022613,2]
[313798098,1707729045201,-784.76,0.00022613,2]
[313798099,1707729045210,-500.0,0.00022613,2]
[313798100,1707729045220,-1254.11,0.00022613,2]
[313798101,1707729045229,-500.0,0.00022613,2]
[313798102,1707729045238,-3930.35,0.00022613,2]
[313798103,1707729045247,-530.71,0.00022613,2]
[313798104,1707729045257,-1174.69,0.00022613,2]
[313798105,1707729045266,-500.0,0.00022613,2]
[313798106,1707729045276,-500.0,0.00022613,2]
[313798107,1707729045285,-1098.94,0.00022613,2]
[313798108,1707729045294,-500.0,0.00022613,2]
[313798109,1707729045303,-500.0,0.00022613,2]
[313798110,1707729045313,-500.0,0.00022613,2]
[313798111,1707729045322,-365.97234222,0.00022613,2]
[313798112,1707729045331,-500.0,0.00022613,2]
[313798113,1707729045340,-500.0,0.00022613,2]
[313798114,1707729045349,-500.0,0.00022613,2]
[313798115,1707729045359,-500.0,0.00022613,2]
[313798116,1707729045368,-500.0,0.00022613,2]
[313798117,1707729045377,-500.0,0.00022613,2]
[313798118,1707729045386,-500.0,0.00022613,2]
[313798119,1707729045396,-721.91,0.00022613,2]
[313798120,1707729045405,-1482.96,0.00022613,2]
[313798121,1707729045414,-1240.29,0.00022613,2]
[313798122,1707729045424,-1654.85,0.00022613,2]
[313798123,1707729045433,-500.0,0.00022613,2]
[313798124,1707729045442,-500.0,0.00022613,2]
[313798125,1707729045452,-500.0,0.00022613,2]
[313798126,1707729045461,-500.0,0.00022613,2]
[313798127,1707729045471,-597.95,0.00022613,2]
[313798128,1707729045480,-500.0,0.00022613,2]
[313798129,1707729045489,-500.0,0.00022613,2]
[313798130,1707729045498,-500.0,0.00022613,2]
[313798131,1707729045508,-500.0,0.00022613,2]
[313798132,1707729045517,-500.0,0.00022613,2]
[313798133,1707729045526,-554.06,0.00022613,2]
[313798134,1707729045535,-500.0,0.00022613,2]
[313798135,1707729045544,-979.11,0.00022613,2]
[313798136,1707729045554,-3418.18,0.00022613,2]
[313798137,1707729045563,-2859.96,0.00022613,2]
[313798138,1707729045573,-500.0,0.00022613,2]
[313798139,1707729045582,-630.78,0.00022613,2]
[313798140,1707729045591,-1003.87,0.00022613,2]
[313798141,1707729045601,-500.0,0.00022613,2]
[313798142,1707729045610,-500.0,0.00022613,2]
[313798143,1707729045619,-500.0,0.00022613,2]
[313798144,1707729045629,-500.0,0.00022613,2]
[313798145,1707729045638,-832.46,0.00022613,2]
[313798146,1707729045647,-692.87,0.00022613,2]
[313798147,1707729045656,-505.23,0.00022613,2]
[313798148,1707729045666,-735.04,0.00022613,2]
[313798149,1707729045675,-954.84,0.00022613,2]
[313798150,1707729045684,-500.0,0.00022613,2]
[313798151,1707729045694,-500.0,0.00022613,2]
[313798152,1707729045704,-500.0,0.00022613,2]
[313798153,1707729045714,-500.0,0.00022613,2]
[313798154,1707729045723,-500.0,0.00022613,2]
[313798155,1707729045732,-500.0,0.00022613,2]
[313798158,1707729045742,-546.81,0.00022613,2]
[313798160,1707729045751,-1942.75,0.00022613,2]
[313798161,1707729045763,-500.0,0.00022613,2]
[313798162,1707729045773,-1864.08,0.00022613,2]
[313798163,1707729045783,-1008.74,0.00022613,2]
[313798164,1707729045792,-851.36,0.00022613,2]
[313798165,1707729045801,-250.0,0.00022613,2]
[313798166,1707729045812,-500.0,0.00022613,2]
[313798167,1707729045821,-500.0,0.00022613,2]
[313798168,1707729045831,-12943.08,0.00022613,2]
[313798169,1707729045840,-500.0,0.00022613,2]
[313798171,1707729045850,-500.0,0.00022613,2]
[313798173,1707729045859,-500.0,0.00022613,2]
[313798174,1707729045869,-500.0,0.00022613,2]
[313798175,1707729045878,-897.96,0.00022613,2]
[313798176,1707729045887,-500.0,0.00022613,2]
[313798177,1707729045896,-565.78,0.00022613,2]
[313798178,1707729045906,-500.0,0.00022613,2]
[313798179,1707729045915,-580.49,0.00022613,2]
[313798180,1707729045924,-2063.46,0.00022613,2]
[313798181,1707729045933,-500.0,0.00022613,2]
[313798182,1707729045943,-801.76,0.00022613,2]
[313798183,1707729045952,-500.0,0.00022613,2]
[313798184,1707729045961,-834.63,0.00022613,2]
[313798185,1707729045970,-535.13,0.00022613,2]
[313798186,1707729045979,-500.0,0.00022613,2]
[313798187,1707729045989,-765.9,0.00022613,2]
[313798188,1707729045998,-500.0,0.00022613,2]
[313798189,1707729046007,-500.0,0.00022613,2]
[313798190,1707729046017,-500.0,0.00022613,2]
[313798191,1707729046026,-500.0,0.00022613,2]
[313798192,1707729046035,-1281.17,0.00022613,2]
[313798193,1707729046044,-500.0,0.00022613,2]
[313798194,1707729046053,-756.14,0.00022613,2]
[313798195,1707729046062,-1718.37,0.00022613,2]
[313798196,1707729046071,-500.0,0.00022613,2]
[313798197,1707729046080,-523.82,0.00022613,2]
[313798198,1707729046090,-538.57,0.00022613,2]
[313798199,1707729046100,-673.21,0.00022613,2]
[313798200,1707729046311,-500.0,0.00022613,2]
[313798201,1707729046321,-500.0,0.00022613,2]
[313798202,1707729046330,-500.0,0.00022613,2]
[313798203,1707729046339,-561.22,0.00022613,2]
[313798204,1707729046348,-500.0,0.00022613,2]
[313798205,1707729046357,-500.0,0.00022613,2]
[313798206,1707729046366,-1056.37,0.00022613,2]
[313798207,1707729046375,-500.0,0.00022613,2]
[313798208,1707729046384,-710.2,0.00022613,2]
[313798209,1707729046394,-1865.83,0.00022613,2]
[313798210,1707729046403,-500.0,0.00022614,2]
[313798211,1707729046412,-302.64658327,0.00022614,2]
[313798212,1707729046421,-500.0,0.00022614,2]
[313798213,1707729046431,-500.0,0.00022614,2]
[313798214,1707729046442,-500.0,0.00022614,2]
[313798215,1707729046451,-324.45096477,0.00022614,2]
[313798216,1707729046460,-500.0,0.00022614,2]
[313798217,1707729046470,-500.0,0.00022614,2]
[313798218,1707729046479,-500.0,0.00022614,2]
[313798219,1707729046488,-500.0,0.00022614,2]
[313798220,1707729046498,-545.84240346,0.00022614,2]
[313798221,1707729046507,-500.0,0.00022614,2]
[313798222,1707729046516,-500.0,0.00022614,2]
[313798223,1707729046525,-500.0,0.00022614,2]
[313798224,1707729046534,-500.0,0.00022614,2]
[313798225,1707729046544,-500.0,0.00022614,2]
[313798226,1707729046553,-500.0,0.00022614,2]
[313798227,1707729046562,-500.0,0.00022614,2]
[313798228,1707729046572,-648.87822341,0.00022614,2]
[313798229,1707729046581,-500.0,0.00022614,2]
[313798230,1707729046590,-500.0,0.00022614,2]
[313798231,1707729046599,-500.0,0.00022614,2]
[313798232,1707729046608,-500.0,0.00022614,2]
[313798233,1707729046617,-500.0,0.00022614,2]
[313798234,1707729046626,-966.85,0.00022614,2]
[313798235,1707729046635,-500.0,0.00022614,2]
[313798236,1707729046645,-500.0,0.00022614,2]
[313798237,1707729046654,-500.0,0.00022614,2]
[313798238,1707729046664,-500.0,0.00022614,2]
[313798239,1707729046673,-500.0,0.00022614,2]
[313798240,1707729046683,-500.0,0.00022614,2]
[313798241,1707729046693,-500.0,0.00022614,2]
[313798242,1707729046702,-500.0,0.00022614,2]
[313798243,1707729046711,-611.36,0.00022614,2]
[313798244,1707729046720,-500.0,0.00022614,2]
[313798245,1707729046729,-500.0,0.00022614,2]
[313798246,1707729046739,-331.26959847,0.00022614,2]
[313798247,1707729046748,-500.0,0.00022614,2]
[313798248,1707729046759,-500.0,0.00022614,2]
[313798249,1707729046772,-225.69445607,0.00022614,2]
[313798250,1707729046781,-500.0,0.00022614,2]
[313798251,1707729046790,-500.0,0.00022614,2]
[313798252,1707729046800,-500.0,0.00022614,2]
[313798253,1707729046810,-500.0,0.00022614,2]
[313798254,1707729046819,-500.0,0.00022614,2]
[313798255,1707729046828,-500.0,0.00022614,2]
[313798256,1707729046838,-500.0,0.00022614,2]
[313798257,1707729046849,-500.0,0.00022614,2]
[313798258,1707729046859,-500.0,0.00022614,2]
[313798259,1707729046869,-403.11127409,0.00022614,2]
[313798260,1707729046878,-689.75,0.00022614,2]
[313798261,1707729046888,-637.0252025,0.00022614,2]
[313798262,1707729046897,-500.0,0.00022614,2]
[313798263,1707729046906,-500.0,0.00022614,2]
[313798264,1707729046916,-500.0,0.00022614,2]
[313798265,1707729046925,-500.0,0.00022614,2]
[313798266,1707729046936,-500.0,0.00022614,2]
[313798267,1707729046946,-500.0,0.00022614,2]
[313798268,1707729046955,-500.0,0.00022614,2]
[313798269,1707729046964,-500.0,0.00022614,2]
[313798271,1707729046974,-500.0,0.00022614,2]
[313798272,1707729046983,-264.8874005,0.00022614,2]
[313798273,1707729046993,-500.0,0.00022614,2]
[313798274,1707729047002,-500.0,0.00022614,2]
[313798275,1707729047011,-520.07601946,0.00022614,2]
[313798276,1707729047020,-500.0,0.00022614,2]
[313798277,1707729047030,-500.0,0.00022614,2]
[313798278,1707729047039,-500.0,0.00022614,2]
[313798279,1707729047048,-500.0,0.00022614,2]
[313798280,1707729047057,-2042.06,0.00022614,2]
[313798281,1707729047067,-500.0,0.00022614,2]
[313798282,1707729047076,-500.0,0.00022614,2]
[313798283,1707729047086,-500.0,0.00022614,2]
[313798284,1707729047095,-313.33169877,0.00022614,2]
[313798285,1707729047105,-500.0,0.00022614,2]
[313798286,1707729047114,-306.68549375,0.00022614,2]
[313798287,1707729047123,-500.0,0.00022614,2]
[313798288,1707729047133,-500.0,0.00022614,2]
[313798289,1707729047142,-507.59,0.00022614,2]
[313798290,1707729047152,-500.0,0.00022614,2]
[313798291,1707729047161,-989.68,0.00022614,2]
[313798292,1707729047170,-500.0,0.00022614,2]
[313798293,1707729047179,-870.36,0.00022614,2]
[313798294,1707729047189,-500.0,0.00022614,2]
[313798295,1707729047199,-500.0,0.00022614,2]
[313798296,1707729047208,-500.0,0.00022614,2]
[313798297,1707729047218,-500.0,0.00022614,2]
[313798298,1707729047227,-500.0,0.00022614,2]
[313798299,1707729047236,-500.0,0.00022614,2]
[313798300,1707729047246,-500.0,0.00022614,2]
[313798301,1707729047255,-500.0,0.00022614,2]
[313798302,1707729047264,-500.0,0.00022614,2]
[313798303,1707729047274,-500.0,0.00022614,2]
[313798304,1707729047283,-500.0,0.00022614,2]
[313798305,1707729047293,-500.0,0.00022614,2]
[313798306,1707729047302,-500.0,0.00022614,2]
[313798307,1707729047312,-181.84161129,0.00022614,2]
[313798308,1707729047321,-500.0,0.00022614,2]
[313798309,1707729047331,-500.0,0.00022614,2]
[313798310,1707729047340,-500.0,0.00022614,2]
[313798311,1707729047350,-500.0,0.00022614,2]
[313798312,1707729047359,-587.9,0.00022614,2]
[313798313,1707729047369,-500.0,0.00022614,2]
[313798314,1707729047378,-500.0,0.00022614,2]
[313798315,1707729047387,-500.0,0.00022614,2]
[313798316,1707729047397,-609.91,0.00022614,2]
[313798317,1707729047406,-500.0,0.00022614,2]
[313798318,1707729047416,-500.0,0.00022614,2]
[313798319,1707729047425,-542.99321928,0.00022614,2]
[313798320,1707729047435,-500.0,0.00022614,2]
[313798321,1707729047444,-500.0,0.00022614,2]
[313798322,1707729047454,-500.0,0.00022614,2]
[313798323,1707729047463,-202.36208741,0.00022614,2]
[313798324,1707729047473,-500.0,0.00022614,2]
[313798325,1707729047482,-500.0,0.00022614,2]
[313798326,1707729047492,-500.0,0.00022614,2]
[313798327,1707729047501,-500.0,0.00022614,2]
[313798328,1707729047510,-500.0,0.00022614,2]
[313798329,1707729047520,-500.0,0.00022614,2]
[313798330,1707729047529,-500.0,0.00022614,2]
[313798331,1707729047538,-500.0,0.00022614,2]
[313798332,1707729047548,-500.0,0.00022614,2]
[313798333,1707729047557,-500.0,0.00022614,2]
[313798334,1707729047567,-500.0,0.00022614,2]
[313798335,1707729047576,-723.82,0.00022614,2]
[313798336,1707729047586,-553.33,0.00022614,2]
[313798337,1707729047595,-500.0,0.00022614,2]
[313798338,1707729047605,-500.0,0.00022614,2]
[313798339,1707729047614,-634.25,0.00022614,2]
[313798340,1707729047624,-500.0,0.00022614,2]
[313798341,1707729047634,-500.0,0.00022614,2]
[313798342,1707729047644,-506.29717184,0.00022614,2]
[313798343,1707729047653,-374.07687218,0.00022614,2]
[313798345,1707729047662,-711.35,0.00022614,2]
[313798347,1707729047672,-500.0,0.00022614,2]
[313798348,1707729047681,-500.0,0.00022614,2]
[313798349,1707729047691,-500.0,0.00022614,2]
[313798350,1707729047700,-520.11,0.00022614,2]
[313798351,1707729047710,-500.0,0.00022614,2]
[313798352,1707729047719,-500.0,0.00022614,2]
[313798353,1707729047728,-500.0,0.00022614,2]
[313798354,1707729047738,-506.40053704,0.00022614,2]
[313798355,1707729047748,-520.00683688,0.00022614,2]
[313798356,1707729047757,-500.0,0.00022614,2]
[313798357,1707729047770,-500.0,0.00022614,2]
[313798358,1707729047779,-500.0,0.00022614,2]
[313798359,1707729047789,-591.81,0.00022614,2]
[313798360,1707729047798,-500.0,0.00022614,2]
[313798361,1707729047809,-500.0,0.00022614,2]
[313798362,1707729047818,-500.0,0.00022614,2]
[313798363,1707729047828,-500.0,0.00022614,2]
[313798364,1707729047838,-618.72,0.00022614,2]
[313798365,1707729047848,-500.0,0.00022614,2]
[313798366,1707729047859,-500.0,0.00022614,2]
[313798367,1707729047868,-500.0,0.00022614,2]
[313798368,1707729047878,-500.0,0.00022614,2]
[313798369,1707729047887,-500.0,0.00022614,2]
[313798370,1707729047897,-2000.0,0.00022615,2]
[313798371,1707729047907,-200.0,0.00022615,2]
[313798372,1707729047916,-200.0,0.00022615,2]
[313798373,1707729047926,-523.17275937,0.00022616,2]
[313798374,1707729047935,-500.0,0.00022616,2]
[313798375,1707729047945,-2439.27782924,0.00022616,2]
[313798376,1707729047954,-856.22158625,0.00022617,3]
[313798377,1707729047963,-50829.02138546,0.00022617,2]
[313798378,1707729047972,-1321.7756295,0.00022754,2]
[313798379,1707729047982,-183.98710279,0.00022786,2]
[313798380,1707729047991,-528.78755995,0.00022787,2]
[313798381,1707729048000,-5012.25215314,0.00022788,2]
[313798382,1707729048009,-961.55023991,0.00022834,2]
[313798383,1707729048018,-312.04470781,0.00022837,2]
[313798384,1707729048027,-1119.3299,0.00022837,2]
[313798385,1707729048037,-2316.93082996,0.00022839,3]
[313798386,1707729048047,-151.0212,0.00022839,3]
[313798387,1707729048056,-151.0212,0.00022839,3]
[313798388,1707729048065,-151.0212,0.00022839,3]
[313798389,1707729048074,-151.0212,0.00022839,3]
[313798390,1707729048084,-151.0212,0.00022839,3]
[313798391,1707729048093,-151.0212,0.00022839,3]
[313798392,1707729048102,-151.0212,0.00022839,3]
[313798393,1707729048111,-151.0212,0.00022839,3]
[313798394,1707729048121,-208.0212,0.00022839,3]
[313798395,1707729048130,-183.98710279,0.00022843,2]
[313798396,1707729048139,-500.0,0.00022886,2]
[313798397,1707729048149,-500.0,0.00022886,2]
[313798398,1707729048158,-500.0,0.00022886,2]
[313798399,1707729048167,-500.0,0.00022886,2]
[313798400,1707729048176,-500.0,0.00022886,2]
[313798401,1707729048185,-500.0,0.00022886,2]
[313798402,1707729048194,-500.0,0.00022886,2]
[313798403,1707729048204,-577.11,0.00022886,2]
[313798404,1707729048213,-500.0,0.00022886,2]
[313798405,1707729048222,-500.0,0.00022886,2]
[313798406,1707729048231,-500.0,0.00022886,2]
[313798407,1707729048240,-500.0,0.00022886,2]
[313798408,1707729048250,-500.0,0.00022886,2]
[313798409,1707729048258,-500.0,0.00022886,2]
[313798410,1707729048267,-500.0,0.00022886,2]
[313798411,1707729048277,-500.0,0.00022886,2]
[313798412,1707729048286,-500.0,0.00022886,2]
[313798413,1707729048295,-500.0,0.00022886,2]
[313798414,1707729048304,-500.0,0.00022886,2]
[313798415,1707729048313,-500.0,0.00022886,2]
[313798416,1707729048323,-500.0,0.00022886,2]
[313798417,1707729048332,-500.0,0.00022886,2]
[313798418,1707729048341,-500.0,0.00022886,2]
[313798419,1707729048350,-500.0,0.00022886,2]
[313798420,1707729048359,-680.89,0.00022886,2]
[313798421,1707729048369,-19659.19,0.00022886,2]
[313798422,1707729048379,-500.0,0.00022886,2]
[313798423,1707729048388,-500.0,0.00022886,2]
[313798424,1707729048397,-501.25,0.00022886,2]
[313798425,1707729048406,-500.0,0.00022886,2]
[313798426,1707729048416,-500.0,0.00022886,2]
[313798427,1707729048425,-788.96,0.00022886,2]
[313798428,1707729048434,-500.0,0.00022886,2]
[313798429,1707729048444,-500.0,0.00022886,2]
[313798430,1707729048453,-500.0,0.00022886,2]
[313798431,1707729048462,-500.0,0.00022886,2]
[313798432,1707729048471,-1899.18,0.00022886,2]
[313798433,1707729048481,-2409.51,0.00022886,2]
[313798434,1707729048490,-740.69,0.00022886,2]
[313798435,1707729048500,-500.0,0.00022886,2]
[313798436,1707729048509,-500.0,0.00022886,2]
[313798437,1707729048518,-500.0,0.00022886,2]
[313798438,1707729048527,-6923.25,0.00022886,2]
[313798439,1707729048537,-925.86,0.00022886,2]
[313798440,1707729048546,-500.0,0.00022886,2]
[313798441,1707729048556,-3245.99,0.00022886,2]
[313798442,1707729048565,-597.15,0.00022886,2]
[313798443,1707729048574,-564.22,0.00022886,2]
[313798444,1707729048650,-2049.65,0.00022886,2]
[313798445,1707729048659,-2190.43,0.00022886,2]
[313798446,1707729048669,-500.0,0.00022886,2]
[313798447,1707729048678,-500.0,0.00022886,2]
[313798448,1707729048687,-500.0,0.00022886,2]
[313798449,1707729048697,-1541.23,0.00022886,2]
[313798450,1707729048707,-1412.43,0.00022886,2]
[313798451,1707729048716,-500.0,0.00022886,2]
[313798452,1707729048725,-500.0,0.00022886,2]
[313798453,1707729048734,-6912.18,0.00022886,2]
[313798454,1707729048743,-293.37583265,0.00022886,2]
[313798455,1707729048753,-726.33,0.00022886,2]
[313798456,1707729048766,-726.08,0.00022886,2]
[313798457,1707729048775,-500.0,0.00022886,2]
[313798458,1707729048784,-500.0,0.00022886,2]
[313798459,1707729048793,-500.0,0.00022886,2]
[313798460,1707729048803,-500.0,0.00022886,2]
[313798461,1707729048812,-500.0,0.00022886,2]
[313798462,1707729048821,-623.12,0.00022886,2]
[313798463,1707729048830,-500.0,0.00022886,2]
[313798464,1707729048841,-11481.88,0.00022886,2]
[313798465,1707729048850,-500.0,0.00022886,2]
[313798466,1707729048860,-500.0,0.00022886,2]
[313798467,1707729048869,-500.0,0.00022886,2]
[313798468,1707729048879,-1479.34,0.00022886,2]
[313798469,1707729048889,-1620.87,0.00022886,2]
[313798470,1707729048898,-1739.84,0.00022886,2]
[313798471,1707729048907,-500.0,0.00022886,2]
[313798472,1707729048916,-2096.86,0.00022886,2]
[313798473,1707729048925,-500.0,0.00022886,2]
[313798474,1707729048934,-1742.32,0.00022886,2]
[313798475,1707729048943,-500.0,0.00022886,2]
[313798476,1707729048952,-2223.12,0.00022886,2]
[313798477,1707729048961,-2899.68,0.00022886,2]
[313798478,1707729048971,-500.0,0.00022886,2]
[313798479,1707729048980,-500.0,0.00022886,2]
[313798480,1707729048990,-500.0,0.00022886,2]
[313798481,1707729048999,-2380.4,0.00022886,2]
[313798482,1707729049009,-3387.12,0.00022886,2]
[313798483,1707729049018,-500.0,0.00022886,2]
[313798484,1707729049027,-500.0,0.00022886,2]
[313798485,1707729049036,-500.0,0.00022886,2]
[313798486,1707729049045,-3298.55,0.00022886,2]
[313798487,1707729049054,-500.0,0.00022886,2]
[313798488,1707729049063,-1980.5,0.00022886,2]
[313798489,1707729049072,-2864.76,0.00022886,2]
[313798490,1707729049081,-500.0,0.00022886,2]
[313798491,1707729049090,-1616.01,0.00022886,2]
[313798492,1707729049099,-500.0,0.00022886,2]
[313798493,1707729049108,-500.0,0.00022886,2]
[313798494,1707729049117,-1050.96,0.00022886,2]
[313798495,1707729049127,-1060.26,0.00022886,2]
[313798496,1707729049136,-500.0,0.00022886,2]
[313798497,1707729049146,-1122.57,0.00022886,2]
[313798498,1707729049156,-1700.08,0.00022886,2]
[313798499,1707729049166,-500.0,0.00022886,2]
[313798500,1707729049175,-676.72,0.00022886,2]
[313798501,1707729049184,-5644.93,0.00022886,2]
[313798502,1707729049193,-869.71,0.00022886,2]
[313798503,1707729049203,-500.0,0.00022886,2]
[313798504,1707729049212,-4136.36,0.00022886,2]
[313798505,1707729049221,-500.0,0.00022886,2]
[313798506,1707729049230,-7106.82,0.00022886,2]
[313798507,1707729049239,-410442.48976842,0.00022886,2]
[313798508,1707729049690,-298.281,0.00022886,2]
[313798509,1707729050516,-436.5492353,0.00022612,2]
[313798510,1707729050530,-63.4507647,0.00022612,2]
[313798511,1707729050541,-495.82332111,0.00022613,2]
[313798512,1707729050554,-428.01667889,0.00022613,2]
[313798513,1707729050564,-201.719,0.00022886,2]
[313798514,1707729050574,-500.0,0.00022886,2]
[313798515,1707729050584,-12560.67063862,0.00022886,2]
[313798516,1707729050623,-24485.91828501,0.00022886,2]
[313798517,1707729050633,-500.0,0.00022887,2]
[313798518,1707729050642,-526.90201216,0.00022887,2]
[313798519,1707729050652,-500.0,0.00022887,2]
[313798520,1707729050662,-348.56879629,0.00022887,2]
[313798521,1707729050673,-694.02,0.00022887,2]
[313798522,1707729050683,-500.0,0.00022887,2]
[313798523,1707729050693,-872.96,0.00022887,2]
[313798524,1707729050702,-500.0,0.00022887,2]
[313798525,1707729050712,-500.0,0.00022887,2]
[313798526,1707729050722,-968.67,0.00022887,2]
[313798527,1707729050732,-682.94,0.00022887,2]
[313798528,1707729050743,-500.0,0.00022887,2]
[313798529,1707729050753,-622.32,0.00022887,2]
[313798530,1707729050765,-500.0,0.00022887,2]
[313798531,1707729050776,-536.26,0.00022887,2]
[313798532,1707729050786,-500.0,0.00022887,2]
[313798533,1707729050796,-500.0,0.00022887,2]
[313798534,1707729050807,-500.0,0.00022887,2]
[313798535,1707729050817,-542.31,0.00022887,2]
[313798536,1707729050828,-500.0,0.00022887,2]
[313798537,1707729050838,-500.0,0.00022887,2]
[313798538,1707729050848,-804.91,0.00022887,2]
[313798539,1707729050859,-591.5,0.00022887,2]
[313798540,1707729050869,-500.0,0.00022887,2]
[313798541,1707729050879,-1036.18,0.00022887,2]
[313798542,1707729050889,-500.0,0.00022887,2]
[313798543,1707729050899,-559.26,0.00022887,2]
[313798544,1707729050910,-640.8084887,0.00022887,2]
[313798545,1707729050920,-459.67187012,0.00022887,2]
[313798546,1707729050930,-500.0,0.00022887,2]
[313798547,1707729050939,-500.0,0.00022887,2]
[313798548,1707729050950,-760.83,0.00022887,2]
[313798549,1707729050960,-683.46,0.00022887,2]
[313798550,1707729050970,-500.0,0.00022887,2]
[313798551,1707729050980,-649.09,0.00022887,2]